Cogmind - Beta 13 @@@ ROGUE MODE // 2024.06.02 @ 20:22:39 Player: lurie Result: Destroyed by G-47 Trooper with Particle Gun Performance ------------- Evolutions (2) 1000 Regions Visited (3) 600 Robots Destroyed (84) 420 Value Destroyed (2073) 2073 Prototype IDs (21) 420 Alien Tech Used (0) 0 Bonus (0) 0 TOTAL SCORE: 4513 Bonus ------- None Cogmind --------- Core Integrity 0/550 Matter 223/300 Energy 290/290 System Corruption 0% Temperature Hot (219) Movement Treading (330) Ox2 Location -8/Materials Parts ------- > --- POWER (1+1) ------ Improved Deuterium Engine > --- PROPULSION (2+1) - Armored Treads Armored Treads > --- UTILITY (6+1) ---- Huge Storage Unit Core Analyzer Hardened Heavy Armor Plating Makeshift Hacking Suite Makeshift Hacking Suite (+) Rainbow Chip > --- WEAPON (2+1) ----- Heavy Assault Rifle Gauss Rifle > --- INVENTORY (25) --- Improved Ion Engine Light Deuterium Engine Light Nuclear Core Light Angular Momentum Engine Light Treads Armored Treads Armored Treads Armored Treads Improved VTOL Module Medium Storage Unit Large Storage Unit Medium Matter Pod (100) Structural Scanner Machine Analyzer Hardened Medium Armor Plating Insulated Plating Graphene Brace Hacking Suite Dynamic Insulation System Power Bank High-powered Shotgun Improved Grenade Launcher Improved Datajack Makeshift Spear Peak State ------------ > --- POWER ------------ Improved Deuterium Engine > --- PROPULSION ------- Armored Treads Armored Treads > --- UTILITY ---------- Huge Storage Unit Core Analyzer Hardened Heavy Armor Plating Makeshift Hacking Suite Makeshift Hacking Suite Rainbow Chip > --- WEAPON ----------- Heavy Assault Rifle Gauss Rifle > --- INVENTORY -------- Light Deuterium Engine Light Nuclear Core Light Angular Momentum Engine Light Treads Armored Treads Armored Treads Armored Treads Improved VTOL Module Large Storage Unit Medium Matter Pod Structural Scanner Machine Analyzer Active Sensor Suite Insulated Plating Graphene Brace Hacking Suite Dynamic Insulation System Power Bank High-powered Shotgun Advanced EMP Blaster Improved Grenade Launcher Improved Datajack Makeshift Spear [Rating: 60] Favorites ----------- Power Ion Engine Engine Ion Engine Power Core Light Nuclear Core Propulsion Light Treads Treads Light Treads Wheel Subdweller Monowheel Utility Huge Storage Unit Device Structural Scanner Storage Huge Storage Unit Processor Core Analyzer Hackware Makeshift Hacking Suite Protection Medium Armor Plating Weapon Assault Rifle Energy Gun Riot Gun Energy Cannon Beam Cannon Ballistic Gun Assault Rifle Piercing Weapon Makeshift Spear Special Melee Weapon Datajack Build | -11 -10 -10 -8 ------- Run | Yrd Mat Sub Mat Slots Evolved 4 | . . . 4 Power . | . . . . Propulsion . | . . . . Utility 4 | . . . 4 Weapon . | . . . . Parts Attached 92 | 7 16 27 42 Power 9 | 1 3 2 3 Engine 8 | 1 3 2 2 Core 1 | . . . 1 Reactor . | . . . . Propulsion 17 | 2 3 4 8 Treads 13 | 2 3 1 7 Leg . | . . . . Wheel 4 | . . 3 1 Hover . | . . . . Flight . | . . . . Utility 37 | 2 7 13 15 Device 11 | 1 . 7 3 Storage 6 | 1 4 . 1 Processor 4 | . . . 4 Hackware 2 | . . . 2 Protection 14 | . 3 6 5 Artifact . | . . . . Weapon 29 | 2 3 8 16 Energy Gun 6 | 1 2 1 2 Energy Cannon 3 | . 1 1 1 Ballistic Gun 15 | 1 . 3 11 Ballistic Cannon . | . . . . Launcher . | . . . . Special Weapon . | . . . . Impact Weapon . | . . . . Slashing Weapon . | . . . . Piercing Weapon 4 | . . 3 1 Special Melee Weapon 1 | . . . 1 Unidentified Prototypes . | . . . . Parts Lost 26 | . 1 3 22 Power 3 | . . 1 2 Propulsion 5 | . . 1 4 Utility 8 | . 1 . 7 Weapon 10 | . . 1 9 Highest Loss Streak 9 | . 1 2 9 To Critical Strikes 2 | . . . 2 Average Slot Usage (%) 93 | . 99 99 78 Engine 11 | . 14 13 6 Treads 21 | . 28 22 14 Wheel 1 | . . 5 . Device 5 | . . 12 4 Storage 11 | . 14 14 7 Processor 4 | . . . 13 Hackware 2 | . . . 7 Protection 7 | . 13 1 7 Energy Gun 5 | . 2 12 . Energy Cannon 6 | . 11 6 . Ballistic Gun 11 | . 13 5 14 Piercing Weapon 1 | . . 3 . Naked Turns . | . . . . Heaviest Build 118 | 14 98 103 118 Greatest Support 40 | 40 40 40 40 Greatest Overweight (x) 31 | . 2 5 31 Average Overweight (x) 1 | . 1 2 2 Largest Inventory Capacity 25 | 8 25 25 25 Average Capacity 23 | 7 21 25 25 Most Carried 25 | 2 25 25 25 Average Carried 21 | 1 19 24 22 Final Capacity 25 | 8 25 25 25 Final Carried 25 | 2 25 25 24 Class Distribution -------------------- 72% | Mutant 27% | Scavenger-Mutant Dominant Class ---------------- Mutant | -10/Materials Mutant | -10/Subcaves Scavenger-Mutant | -8/Materials Resources | -11 -10 -10 -8 ----------- Run | Yrd Mat Sub Mat Matter Collected 2053 | 300 424 353 976 Remotely . | . . . . Salvage Created 2932 | 102 722 538 1570 Parts 202 | 4 54 46 98 Haulers Intercepted 4 | . 2 . 2 Recyclers Shooed 1 | 1 . . . Parts Field Recycled . | . . . . Retrieved Matter . | . . . . Parts Self-Destructed 12 | . . 12 . Prevented 1 | . . 1 . Kills | -11 -10 -10 -8 ------- Run | Yrd Mat Sub Mat Combat Hostiles Destroyed 57 | . 13 14 30 Melee 2 | . . . 2 Guns 45 | . 7 10 28 Cannons 8 | . 5 3 . Classes Destroyed 14 | 2 8 1 3 Worker 6 | . 2 . 4 Builder 2 | . 1 . 1 Tunneler 2 | 1 . . 1 Hauler 4 | . 2 . 2 Recycler 4 | 1 1 . 2 Mechanic 1 | . 1 . . Operator 2 | . 2 . . Watcher 6 | . 2 . 4 Swarmer 21 | . 6 4 11 Grunt 16 | . 7 . 9 Sentry 5 | . . . 5 Specialist 4 | . . . 4 Heavy 1 | . . . 1 Subdweller 10 | . . 10 . Best Kill Streak 5 | 1 3 4 5 Combat Bots Only 4 | . 3 4 4 Max Kills in Single Turn 2 | 1 2 1 2 Gunslinging 1 | . 1 . . Exploded . | . . . . Melee 1 | . . . 1 Uniques/NPCs Destroyed . | . . . . Combat | -11 -10 -10 -8 -------- Run | Yrd Mat Sub Mat Hostile Shots Fired 485 | . 69 86 330 Missed 113 | . 13 28 72 Damage Taken 5672 | . 572 948 4152 Core 763 | . 22 179 562 Absorbed by Shields 31 | . . . 31 Redirected to Shielding 103 | . . . 103 Regen/Repaired (Parts) 22 | . 22 . . Core Remaining (%) 59 | 100 . 19 . Volleys Fired 243 | 10 63 36 134 Largest 2 | 2 2 2 2 Hottest 130 | 60 80 130 110 Shots Fired 442 | 20 121 63 238 Gun 383 | 20 84 46 233 Cannon 59 | . 37 17 5 Launcher . | . . . . Special . | . . . . Kinetic 312 | 10 63 20 219 Thermal 104 | 10 58 17 19 Explosive . | . . . . Electromagnetic 26 | . . 26 . Robot Hit Streak 44 | 5 13 44 8 Robot Miss Streak 9 | 3 4 2 9 Penetration Max 1 | . . . 1 Secondary Targets 3 | . 1 . 2 Max Gunslinging Chain 1 | . 1 . 1 Shots Hit Robots 294 | 12 71 47 164 Core Hits 146 | 3 31 29 83 Critical Kills 3 | . 1 1 1 Critical Parts Destroyed 3 | . . . 3 Critical Strikes 8 | . 1 1 6 Meltdown 2 | . 1 1 . Destroy 4 | . . . 4 Impale 2 | . . . 2 Melee Attacks 26 | . . 9 17 Impact . | . . . . Slashing . | . . . . Piercing 25 | . . 9 16 Sneak Attacks 1 | . . . 1 Combat Hostiles . | . . . . Follow-up Attacks . | . . . . Damage Inflicted 5458 | 151 1156 853 3298 Guns 4398 | 151 635 678 2934 Cannons 729 | . 471 175 83 Explosions . | . . . . Melee 281 | . . . 281 Ramming 50 | . 50 . . Kinetic 3566 | 86 511 246 2723 Thermal 1129 | 65 595 175 294 Explosive . | . . . . Electromagnetic 432 | . . 432 . Impact . | . . . . Slashing . | . . . . Piercing 281 | . . . 281 Highest Corruption . | . . . . Average Corruption . | . . . . Corruption Purged . | . . . . Corruption Blocked . | . . . . Overload Shots . | . . . . Overflow Damage 29 | . 1 13 15 Projectiles 13 | . . 13 . Explosions . | . . . . Melee 16 | . 1 . 15 Knockbacks 2 | . 2 . . Impact 2 | . 2 . . Kinetic . | . . . . Secondary . | . . . . Self-Inflicted Damage . | . . . . Shots . | . . . . Rammed 5 | . 5 . . Targets Rammed 6 | . 5 . 1 Kicked . | . . . . Crushed 1 | . . . 1 Highest Temperature 325 | . 325 78 285 Average Temperature 60 | . 73 21 58 Received Heat Transfer 1755 | . 210 141 1404 Effects 1 | . 1 . . Energy Bleed 1 | . 1 . . Siege Activations . | . . . . Robots Corrupted . | . . . . Combat Hostiles . | . . . . Parts Fried . | . . . . Impact Corruptions 1 | . 1 . . Robots Melted 2 | . 1 1 . Combat Hostiles 2 | . 1 1 . Parts Melted 6 | . 2 4 . Heat Transferred 1975 | 150 1237 222 366 Parts Sabotaged . | . . . . Parts Stolen . | . . . . Parts Stripped . | . . . . Power Chain Reactions . | . . . . Alert | -11 -10 -10 -8 ------- Run | Yrd Mat Sub Mat Peak Influence 259 | 10 199 . 259 Initial 6 | . 6 . . Average 66 | 2 55 . 82 Maximum Alert Level 1 | . . . 1 Low Security (%) 97 | 100 100 . 93 Level 1 2 | . . . 6 Level 2 . | . . . . Level 3 . | . . . . Level 4 . | . . . . Level 5 . | . . . . High Security . | . . . . Max Security . | . . . . Squads Dispatched 5 | . 2 . 3 Investigation 2 | . 2 . . Extermination . | . . . . Reinforcement 3 | . . . 3 Assault . | . . . . Garrison . | . . . . Intercept . | . . . . Searches Triggered . | . . . . Construction Impeded . | . . . . Haulers Reinforced . | . . . . Active Scanning Responses . | . . . . Cargo Convoy Interrupts . | . . . . Stealth | -11 -10 -10 -8 --------- Run | Yrd Mat Sub Mat Distress Signals 4 | . 1 . 3 Communications Jammed . | . . . . Distress Signals . | . . . . Times Spotted 93 | . 21 20 52 Peak Tracking Total 7 | . 4 6 7 Tactical Retreats 5 | . 1 2 2 Traps | -11 -10 -10 -8 ------- Run | Yrd Mat Sub Mat Traps Triggered . | . . . . Indirectly . | . . . . Trap Hack Attempts . | . . . . Triggered . | . . . . Disarmed . | . . . . Reprogrammed . | . . . . Reused . | . . . . Traps Extracted . | . . . . Installed . | . . . . Triggered . | . . . . Machines | -11 -10 -10 -8 ---------- Run | Yrd Mat Sub Mat Machines Disabled 2 | . . 1 1 Max in Single Turn 1 | . . 1 1 Garrison Access 1 | . . . 1 Machines Repaired . | . . . . Machines Dismantled . | . . . . Machines Sabotaged . | . . . . Overloaded Fab Kills . | . . . . Hacking | -11 -10 -10 -8 --------- Run | Yrd Mat Sub Mat Machines Accessed 18 | . 10 2 6 Terminals 10 | . 7 . 3 Fabricators . | . . . . Repair Stations 1 | . 1 . . Recycling Units 3 | . 2 . 1 Scanalyzers 1 | . . . 1 Garrison Access 1 | . . . 1 Total Hacks 59 | . 29 2 28 Successful 41 | . 19 2 20 Failed 17 | . 9 . 8 Catastrophic 1 | . 1 . . Database Lockouts 1 | . 1 . . Manual 30 | . 13 . 17 Terminals 45 | . 23 . 22 Fabricators . | . . . . Repair Stations 2 | . 2 . . Recycling Units 6 | . 4 . 2 Scanalyzers 3 | . . . 3 Garrison Access 1 | . . . 1 Terminal Hacks 25 | . 11 2 12 Record 1 | . . 1 . Part Schematic 1 | . . . 1 Robot Analysis 9 | . 3 . 6 Prototype ID Bank 5 | . 4 . 1 Terminal Index 1 | . . . 1 Alert Level 1 | . . . 1 Unreport Threat 2 | . . . 2 Locate Traps 3 | . 3 . . Zone Layout 1 | . 1 . . Derelict Proto ID Bank 1 | . . 1 . Fabricator Hacks . | . . . . Repair Station Hacks 2 | . 2 . . Scan Component 1 | . 1 . . Repair 1 | . 1 . . Recycling Unit Hacks 2 | . 2 . . Report Inventory 1 | . 1 . . Retrieve Components 1 | . 1 . . Scanalyzer 3 | . . . 3 Insert Component 3 | . . . 3 Garrison Access Hacks 1 | . . . 1 Seal Access 1 | . . . 1 Unauthorized Hacks 8 | . 4 . 4 Terminals 7 | . 3 . 4 Botnet 6 | . 3 . 3 Operators 1 | . . . 1 Fabricators . | . . . . Repair Stations . | . . . . Recycling Units 1 | . 1 . . Reject 1 | . 1 . . Scanalyzers . | . . . . Garrison Access . | . . . . Data Cores Recovered 1 | . 1 . . Used 1 | . 1 . . Hacking Detections 13 | . 8 . 5 Full Trace Events 2 | . 2 . . Feedback Events . | . . . . Feedback Blocked . | . . . . Robot Schematics Acquired . | . . . . Robots Built . | . . . . Authchips . | . . . . Time . | . . . . Total Robot Build Rating . | . . . . Part Schematics Acquired 1 | . . . 1 Parts Built . | . . . . Authchips . | . . . . Time . | . . . . Total Part Build Rating . | . . . . Parts Repaired 1 | . 1 . . Time 32 | . 32 . . Parts Recycled . | . . . . Recycled Matter . | . . . . Retrieved Matter . | . . . . Retrieved Components 9 | . 9 . . Parts Scanalyzed . | . . . . Part Schematics Acquired . | . . . . Parts Damaged . | . . . . Bothacking | -11 -10 -10 -8 ------------ Run | Yrd Mat Sub Mat Used RIF Installer . | . . . . Robots Hacked 1 | . . . 1 Non-combat 1 | . . . 1 Combat . | . . . . Robot Hacks Applied 1 | . . . 1 no_distress 1 | . . . 1 Relay Couplers Released . | . . . . Fabnet Peak Effective % . | . . . . Robots Rewired . | . . . . Allies Hacked . | . . . . Hacks Repelled . | . . . . Allies | -11 -10 -10 -8 -------- Run | Yrd Mat Sub Mat Total Allies . | . . . . Largest Group . | . . . . Highest-Rated Group . | . . . . Highest-Rated Ally . | . . . . Total Orders . | . . . . Ally Attacks . | . . . . Total Damage . | . . . . Kills . | . . . . Allies Corrupted . | . . . . Allies Melted . | . . . . Intel | -11 -10 -10 -8 ------- Run | Yrd Mat Sub Mat Robot Analysis Total 8 | . 3 . 5 Derelict Logs Recovered 1 | . . 1 . Drone Launches . | . . . . Drone Recoveries . | . . . . Exploration | -11 -10 -10 -8 ------------- Run | Yrd Mat Sub Mat Turns Passed 7533 | 118 2531 2588 2296 Spaces Moved 2186 | 50 680 943 513 Core 7 | 6 . . 1 Treads 1822 | 44 680 613 485 Legs . | . . . . Wheels 357 | . . 330 27 Hover . | . . . . Flight . | . . . . Fastest Speed 50 | 50 160 129 129 Average Speed 264 | 146 243 253 322 Slowest Speed 1600 | 160 320 320 1600 Overloaded Moves . | . . . . Propulsion Burnouts . | . . . . Robots Hopped . | . . . . Cave-ins Triggered . | . . . . Exploration Rate (%) 52 | 4 96 58 51 Regions Visited 3 Branch Regions 1 Pre-discovered Areas 1 | . . 1 . Known Exits Taken . | . . . . Unknown Exits Taken 3 | 1 1 1 . Scrap Searched 5 | . . 5 . Spaces Dug . | . . . . Terrain Destroyed 7 | . . 2 5 Melee . | . . . . Projectile 7 | . . 2 5 AOE . | . . . . Terrain Rammed . | . . . . Walls Destroyed . | . . . . Machines Disabled . | . . . . Actions | -11 -10 -10 -8 --------- Run | Yrd Mat Sub Mat Total 3461 | 71 1424 1067 899 Wait 791 | 3 625 20 143 Move 2183 | 49 679 942 513 Hop . | . . . . Pick Up 72 | 2 25 17 28 Fast Attach 24 | 7 2 2 13 Attach 22 | . 1 4 17 Detach 2 | . 1 . 1 Swap 46 | . 13 21 12 Drop 46 | . 10 16 20 Fire 243 | 10 63 36 134 Melee 26 | . . 9 17 Ram . | . . . . Kick . | . . . . Crush 6 | . 5 . 1 Escape Stasis . | . . . . Rewire . | . . . . Trap . | . . . . Miscellaneous . | . . . . Route ------- -11/Scrapyard -10/Materials (discovered 5 exits: [*Mat x3] / [*Min] / *Sub) -10/Subcaves (discovered 2 exits: *Mat / [*Rec]) -8/Materials (discovered 1 exit: [*Fac]) History --------- Turn | Location | Event 8 | -11/Scrapyard | Discovered new exit (range 14) 119 | -11/Scrapyard | Entered Materials 315 | -10/Materials | Build established: Mutant 426 | -10/Materials | Central database locked down 470 | -10/Materials | Discovered new exit (range 9) 848 | -10/Materials | Discovered new exit (range 10) 2001 | -10/Materials | Discovered new exit (range 4) 2364 | -10/Materials | Discovered new exit (range 11) 2447 | -10/Materials | Repaired Med. Armor Plating 2631 | -10/Materials | Discovered new exit (range 5) 2650 | -10/Materials | Entered Subcaves 2662 | -10/Subcaves | Learned location of Zion (-7) 2673 | -10/Subcaves | Shifting Twisted Machinery released Sub. Beam Cannon 2674 | -10/Subcaves | Shifting Twisted Machinery released Mak. Spear 2991 | -10/Subcaves | Discovered new exit (range 14) 3329 | -10/Subcaves | Shifting Twisted Machinery released Mak. Hacking Suite 3346 | -10/Subcaves | Shifting Twisted Machinery released Sub. Optics 3971 | -10/Subcaves | Visited Clippyterm 4216 | -10/Subcaves | Ambushed by Subdwellers from Twisted Machinery 4243 | -10/Subcaves | Ambushed by Subdweller buried in earth 4243 | -10/Subcaves | Ambushed by Subdweller buried in earth 4290 | -10/Subcaves | Discovered new exit (range 13) 4750 | -10/Subcaves | A Subdweller sparked back to life 4750 | -10/Subcaves | A Subdweller sparked back to life 4750 | -10/Subcaves | A Subdweller sparked back to life 4759 | -10/Subcaves | Core integrity fell below 50% 4779 | -10/Subcaves | Found Prototype Processor 4890 | -10/Subcaves | Shifting Twisted Machinery released Battle Rifle 4921 | -10/Subcaves | Core integrity fell below 20% 4991 | -10/Subcaves | Shifting Twisted Machinery released Sub. Machine Gun 5171 | -10/Subcaves | Visited 4L-MR0's lab 5176 | -10/Subcaves | Identified Rainbow Chip 5188 | -10/Subcaves | Found Power Bank 5238 | -10/Subcaves | Entered Materials 5238 | -8/Materials | Evolved 4 slots: Utility x4 5321 | -8/Materials | Lost 4 parts (1n3u) 5556 | -8/Materials | Core integrity fell below 50% 5604 | -8/Materials | Lost 9 parts (1p2n2u4w) 5653 | -8/Materials | Core integrity fell below 20% 5689 | -8/Materials | Lost 3 parts (1n2u) 5693 | -8/Materials | Found Prototype Device 5963 | -8/Materials | Build established: Scavenger-Mutant 6273 | -8/Materials | Attached Rainbow Chip, gained temporary slots: Power, Propulsion, Utility, Weapon 7055 | -8/Materials | Identified Active Sensor Suite 7327 | -8/Materials | Discovered new exit (range 16) 7534 | -8/Materials | Destroyed by G-47 Trooper with Particle Gun Last Messages --------------- 07478_ Slug penetrates T-07 Excavator. 07478_ K-01 Serf destroyed. 07480_ K-01 Serf collects debris. 07487_ U-05 Engineer destroyed. 07490_ K-01 Serf destroyed. 07493_ Acquired 38 matter. 07506_ Slug penetrates Wall. 07509_ Slug penetrates G-47 Trooper. 07509_ A-02 Transporter suffers critical hit (Destroy). 07509_ Destroyed Lgt. Treads. 07512_ Slug penetrates G-47 Trooper. 07512_ G-47 Trooper suffers critical hit (Destroy). 07512_ Destroyed Aluminum Leg. 07515_ Slug penetrates G-47 Trooper. 07515_ G-47 Trooper destroyed. 07518_ Slug penetrates G-47 Trooper. 07524_ K-01 Serf collects debris. 07533_ Slug penetrates Wall. Map ----- +----------------------------------------------------+ | ???????????# #?????????????????? | | ???????????# """ #?????????????????? | | ???????????# """ #?????????????????? | | ???????????# """ [ #?????????????????? | | ???????????# #?????????????????? | | ???????????# """ #?????????????????? | | ???????????# """ #?????????????????? | | ???????????# """ #?????????????????? | | ???????????# #???#######???????? | | ??????????######+######## #???????? | | ??????????# #???????? | | ??????????# < #???????? | | ??????????# = #???????? | | ??????????####+######+### #???????? | | ???????????# * ## ## ########?? | | ???????????# ## ## # #?? | | ???????????# !!!## ## # #?? | | ???????????# !! ## ## + """ #?? | | ???????????# ! ## ## # """ #?? | | ???????????# ## ##% # """ #?? | | ???????????#/####### ## # #?? | | ???????????# #?????# ## ########?? | | ???????????# #??##?# ## #????????? | | ???????????#*#?T"#?####### #?????#### | | ???????????#!## "######??# ####### | | ???????????#k=@t #??#[= *[ | | ???????????#!==###### #??# !! T | | ???????????#=! #?????????# ! | | ???????????# #?????????####### ### | | ???????????+ #?????????????? ### | | ?????????? # #?????????????# #?# | | ????????? # ;?????????????# # ?# | | ???????? ?# #?????????????###??### | | ??????? ??# g#????????????????????# | | ???????##??#t #????????????????????# | | ???????????# #????????????????????# | | ???????????# !#????????????????????# | | ???????????# %#????????????????????# | | ???????????# +????????????????????# | | ???????????# #????????????????????# | | ???????????? |???????????########### | | ??????????????????????????# ## | | ??????????????????????????#""" ## | | ??????????????????????????#""" # | | ??????????????????????????#""" # | | ??????????????????????????# *+ T | | ??????????????????????????# !]"" #% | | ??????????????????????????# S"" # | | ?????????????????????????# "" ## | | ?????????????????????????## ## | +----------------------------------------------------+ Best States ------------- Heat Dissipation 58 Energy Generation 16 Energy Capacity 290 Matter Stores 300 Matter Capacity 300 Sight Range 20 Terrain Scan Range 16 Terrain Scan Density 10 Armor Coverage 600 Core Shielding 20 Evasion (%) 40 Core Analysis 6 Recoil Reduction 2 Offensive Hacking 22 Item Schematics ----------------- Lrg. Storage Unit | -8/Materials | Hacked Robot Schematics ------------------ None Fabricated ------------ Nothing Alien Tech Used ----------------- None Achievements -------------- None Challenges ------------ None Game ------ Seed WaveHugePurifier Manual? 0 Play Time 00:50:08 Cumulative 124.5 hours Start 2024.06.02 @ 19:27:26 End 2024.06.02 @ 20:22:39 Sessions 1 Manual Loads 0 Difficulty Rogue Special Mode None Game No. 64 Rogue 64 Adventurer 0 Explorer 0 Win Type - Total 0 Types 0/0/0/0/0/0/0/0/0 Lore% 52 Gallery% 58 Achievement% 45 Wizard Run 0 Options --------- Layout 2 ASCII 0 Keyboard 0 Movement Mouse Keybinds 0 Fullscreen 1 Font 32/SmallcapsGlow Map View 50x44 Zoom Use 0% Tactical HUD 1 Map Filters NONE Filters NONE Steam 1 RUN: a6b8aff4-61c1-418c-aa8f-165355a9edd3